[Event "10th Iberoamericano-ch 2024"]
[Site "Linares"]
[Date "2024.09.28"]
[Round "6.20"]
[White "Vega Gutierrez, Sabrina"]
[Black "Prado Acebo, Ines"]
[Result "1-0"]
[Annotator "ChessBase"]
[ECO "B53"]
[WhiteElo "2374"]
[BlackElo "2189"]
[PlyCount "91"]
[EventDate "2024.09.25"]
[EventType "swiss"]
[EventCountry "ESP"]
[SourceTitle "playchess.com"]
[Source "ChessBase"]
[SourceQuality "1"]
[TimeControl "5400+30"]

1. e4 {[%emt 0:00:24]} c5 {[%emt 0:00:08]} 2. Nf3 {[%emt 0:00:27]} d6 {[%emt 0:00:09]} 3. d4 {[%emt 0:00:35]} cxd4 {[%emt 0:00:06]} 4. Qxd4 {[%emt 0:00:08]} Nc6 {[%emt 0:00:08]} 5. Bb5 {[%emt 0:00:14]} Bd7 {[%emt 0:00:08]} 6. Bxc6 {[%emt 0:00:11]} Bxc6 {[%emt 0:00:07]} 7. Nc3 {[%emt 0:00:07]} Nf6 {[%emt 0:00:07]} 8. Bg5 {[%emt 0:00:11]} e6 {[%emt 0:00:09]} 9. O-O-O {[%emt 0:00:14]} Be7 {[%emt 0:00:08]} 10. Qd3 {[%emt 0:00:21]} Qa5 {[%emt 0:00:20]} 11. h4 {[%emt 0:00:26]} h6 {[%emt 0:00:11]} 12. Bd2 {[%emt 0:00:06]} Qa6 {[%emt 0:00:08]} 13. Qxa6 {[%emt 0:00:16]} bxa6 {[%emt 0:00:10]} 14. Rde1 {[%emt 0:00:16]} e5 {[%emt 0:14:44]} 15. h5 {[%emt 0:12:35]} Ng4 {[%emt 0:11:05]} 16. Rh3 {[%emt 0:09:23]} Bd8 {[%emt 0:07:45]} 17. Nh2 {[%emt 0:28:35]} Nf6 {[%emt 0:19:36]} 18. Nf1 {[%emt 0:04:51]} Bd7 {[%emt 0:08:29]} 19. Rd3 {[%emt 0:10:18]} Bb6 {[%emt 0:05:46]} 20. Be3 {[%emt 0:01:01]} Bc7 {[%emt 0:04:07]} 21. Ng3 {[%emt 0:03:24]} Ng4 {[%emt 0:05:56]} 22. Nf5 {[%emt 0:04:43]} Bxf5 {[%emt 0:00:54]} 23. exf5 {[%emt 0:00:12]} Nf6 {[%emt 0:02:06]} 24. Red1 {[%emt 0:05:39]} O-O {[%emt 0:05:55]} 25. Nd5 {[%emt 0:00:29]} Nxd5 {[%emt 0:00:30]} 26. Rxd5 {[%emt 0:00:03]} Rab8 {[%emt 0:00:57]} 27. R1d3 {[%emt 0:02:43]} Rb4 {[%emt 0:01:54]} 28. Rc3 {[%emt 0:01:38]} Bb6 {[%emt 0:05:56]} 29. Rxd6 {[%emt 0:01:00]} Bxe3+ {[%emt 0:00:47]} 30. Rxe3 {[%emt 0:01:05]} Rf4 {[%emt 0:00:32]} 31. f3 {[%emt 0:07:12]} Rxf5 {[%emt 0:00:35]} 32. g4 {[%emt 0:00:42]} Rf4 {[%emt 0:00:09]} 33. Rxa6 {[%emt 0:00:47]} f5 {[%emt 0:02:34]} 34. Rxe5 {[%emt 0:03:28]} fxg4 {[%emt 0:01:14]} 35. fxg4 {[%emt 0:00:20]} Rf1+ {[%emt 0:01:58]} 36. Kd2 {[%emt 0:00:02]} Rd8+ {[%emt 0:00:10]} 37. Kc3 {[%emt 0:03:29]} Rf3+ {[%emt 0:00:27]} 38. Kb4 {[%emt 0:00:22]} Rd4+ {[%emt 0:02:27]} 39. Ka5 {[%emt 0:00:31]} Rff4 {[%emt 0:00:11]} 40. b3 {[%emt 0:00:27]} Rd2 {[%emt 0:01:09]} 41. Rc5 {[%emt 0:00:41]} Rxg4 {[%emt 0:00:29]} 42. Rxa7 {[%emt 0:00:35]} Kh7 {[%emt 0:00:19]} 43. a4 {[%emt 0:00:27]} Rd6 {[%emt 0:00:31]} 44. Kb5 {[%emt 0:00:54]} Rd8 {[%emt 0:00:23]} 45. Rb7 {[%emt 0:00:13]} Rg5 {[%emt 0:00:31]} 46. a5 {[%emt 0:01:07]} 1-0

[Event "10th Iberoamericano-ch 2024"]
[Site "Linares"]
[Date "2024.09.28"]
[Round "6.21"]
[White "Goncalves, Samuel Jesus P"]
[Black "Panelo, Marcelo"]
[Result "1/2-1/2"]
[Annotator "ChessBase"]
[ECO "B22"]
[WhiteElo "2169"]
[BlackElo "2364"]
[PlyCount "89"]
[EventDate "2024.09.25"]
[EventType "swiss"]
[EventCountry "ESP"]
[SourceTitle "playchess.com"]
[Source "ChessBase"]
[SourceQuality "1"]
[TimeControl "5400+30"]

1. e4 {[%emt 0:02:06]} c5 {[%emt 0:00:05]} 2. c3 {[%emt 0:00:10]} d5 {[%emt 0:03:42]} 3. exd5 {[%emt 0:00:49]} Qxd5 {[%emt 0:00:06]} 4. d4 {[%emt 0:00:07]} Nc6 {[%emt 0:00:08]} 5. Nf3 {[%emt 0:00:05]} Bf5 {[%emt 0:00:06]} 6. Be3 {[%emt 0:00:09]} cxd4 {[%emt 0:06:07]} 7. Nxd4 {[%emt 0:08:31]} Nxd4 {[%emt 0:00:06]} 8. Qxd4 {[%emt 0:00:22]} Nf6 {[%emt 0:13:10]} 9. Na3 {[%emt 0:01:39]} Qxd4 {[%emt 0:08:30]} 10. Bxd4 {[%emt 0:00:13]} e5 {[%emt 0:01:23]} 11. Bxe5 {[%emt 0:08:25]} Bxa3 {[%emt 0:00:19]} 12. bxa3 {[%emt 0:06:41]} O-O-O {[%emt 0:02:55]} 13. Bd4 {[%emt 0:00:05]} Rhe8+ {[%emt 0:01:44]} 14. Kd2 {[%emt 0:00:18]} Ne4+ {[%emt 0:20:33]} 15. Kc1 {[%emt 0:00:07]} a6 {[%emt 0:16:33]} 16. f3 {[%emt 0:08:42]} Nd6 {[%emt 0:07:52]} 17. Kb2 {[%emt 0:04:21]} Nb5 {[%emt 0:05:06]} 18. Bxb5 {[%emt 0:00:14]} axb5 {[%emt 0:00:06]} 19. Rhe1 {[%emt 0:00:17]} Bd3 {[%emt 0:00:44]} 20. Kb3 {[%emt 0:03:57]} Kd7 {[%emt 0:05:09]} 21. Bxg7 {[%emt 0:06:21]} Bc4+ {[%emt 0:00:15]} 22. Kb4 {[%emt 0:06:45]} Rxe1 {[%emt 0:00:04]} 23. Rxe1 {[%emt 0:00:07]} Ra8 {[%emt 0:00:03]} 24. Kc5 {[%emt 0:01:05]} Rxa3 {[%emt 0:00:07]} 25. Bf6 {[%emt 0:00:35]} b6+ {[%emt 0:00:58]} 26. Kxb6 {[%emt 0:00:55]} Rxa2 {[%emt 0:00:04]} 27. Kc5 {[%emt 0:05:33]} Re2 {[%emt 0:00:07]} 28. Rxe2 {[%emt 0:00:25]} Bxe2 {[%emt 0:00:05]} 29. Kd5 {[%emt 0:00:26]} Bf1 {[%emt 0:00:08]} 30. g4 {[%emt 0:00:21]} Be2 {[%emt 0:01:10]} 31. Ke4 {[%emt 0:00:06]} Ke6 {[%emt 0:00:10]} 32. Bg7 {[%emt 0:00:18]} f6 {[%emt 0:02:01]} 33. Bf8 {[%emt 0:00:39]} Kf7 {[%emt 0:00:09]} 34. Bc5 {[%emt 0:00:06]} Bd1 {[%emt 0:00:05]} 35. Bd4 {[%emt 0:00:19]} Bc2+ {[%emt 0:00:17]} 36. Kf4 {[%emt 0:00:07]} Bd1 {[%emt 0:00:10]} 37. Kg3 {[%emt 0:01:13]} Be2 {[%emt 0:01:04]} 38. h3 {[%emt 0:01:22]} Kg6 {[%emt 0:00:28]} 39. h4 {[%emt 0:00:37]} Bd1 {[%emt 0:00:45]} 40. f4 {[%emt 0:00:34]} f5 {[%emt 0:01:45]} 41. h5+ {[%emt 0:00:38]} Kf7 {[%emt 0:00:08]} 42. gxf5 {[%emt 0:00:24]} Bxh5 {[%emt 0:00:11]} 43. Kh4 {[%emt 0:00:12]} Be2 {[%emt 0:00:17]} 44. Kg5 {[%emt 0:00:06]} h5 {[%emt 0:00:14]} 45. Be5 {[%emt 0:00:08]} 1/2-1/2

[Event "10th Iberoamericano-ch 2024"]
[Site "Linares"]
[Date "2024.09.28"]
[Round "6.22"]
[White "Lorente Serrano, Rosa Adela"]
[Black "Sos Andreu, Eric"]
[Result "0-1"]
[Annotator "ChessBase"]
[ECO "A13"]
[WhiteElo "2087"]
[BlackElo "2359"]
[PlyCount "82"]
[EventDate "2024.09.25"]
[EventType "swiss"]
[EventCountry "ESP"]
[SourceTitle "playchess.com"]
[Source "ChessBase"]
[SourceQuality "1"]
[TimeControl "5400+30"]

1. c4 {[%emt 0:00:04]} e6 {[%emt 0:02:32]} 2. Nf3 {[%emt 0:00:24]} Nf6 {[%emt 0:00:29]} 3. g3 {[%emt 0:03:31]} d5 {[%emt 0:00:21]} 4. Bg2 {[%emt 0:00:06]} d4 {[%emt 0:01:08]} 5. b4 {[%emt 0:12:57]} a5 {[%emt 0:07:43]} 6. b5 {[%emt 0:00:37]} Bc5 {[%emt 0:00:09]} 7. O-O {[%emt 0:02:49]} O-O {[%emt 0:03:12]} 8. a4 {[%emt 0:08:45]} Re8 {[%emt 0:03:43]} 9. d3 {[%emt 0:06:23]} e5 {[%emt 0:01:38]} 10. Nbd2 {[%emt 0:00:15]} Nbd7 {[%emt 0:11:12]} 11. Nb3 {[%emt 0:02:26]} Bb4 {[%emt 0:00:10]} 12. e4 {[%emt 0:05:48]} Nc5 {[%emt 0:06:29]} 13. Nxc5 {[%emt 0:01:54]} Bxc5 {[%emt 0:00:04]} 14. Nh4 {[%emt 0:06:14]} Be6 {[%emt 0:02:57]} 15. h3 {[%emt 0:03:34]} Nd7 {[%emt 0:00:24]} 16. Nf5 {[%emt 0:03:21]} g6 {[%emt 0:06:03]} 17. Nh6+ {[%emt 0:00:54]} Kg7 {[%emt 0:02:42]} 18. Ra2 {[%emt 0:08:00]} c6 {[%emt 0:07:28]} 19. Ng4 {[%emt 0:07:09]} h5 {[%emt 0:05:36]} 20. Nh6 {[%emt 0:06:59]} cxb5 {[%emt 0:05:22]} 21. axb5 {[%emt 0:01:50]} f6 {[%emt 0:00:11]} 22. g4 {[%emt 0:02:13]} hxg4 {[%emt 0:00:34]} 23. Nxg4 {[%emt 0:00:31]} g5 {[%emt 0:00:53]} 24. h4 {[%emt 0:01:02]} Rh8 {[%emt 0:02:32]} 25. hxg5 {[%emt 0:00:05]} fxg5 {[%emt 0:00:07]} 26. f3 {[%emt 0:04:04]} Qe8 {[%emt 0:06:02]} 27. Qe1 {[%emt 0:01:13]} Qh5 {[%emt 0:00:08]} 28. Qg3 {[%emt 0:00:26]} Bd6 {[%emt 0:01:51]} 29. Kf2 {[%emt 0:02:35]} Raf8 {[%emt 0:03:35]} 30. Ke1 {[%emt 0:01:31]} b6 {[%emt 0:04:47]} 31. Nf2 {[%emt 0:00:52]} Kf7 {[%emt 0:01:25]} 32. Rh1 {[%emt 0:01:13]} Qg6 {[%emt 0:00:04]} 33. Rxh8 {[%emt 0:01:07]} Rxh8 {[%emt 0:00:07]} 34. Nh3 {[%emt 0:00:18]} Bxh3 {[%emt 0:02:14]} 35. Bxh3 {[%emt 0:00:02]} Nc5 {[%emt 0:00:08]} 36. Rg2 {[%emt 0:02:28]} Nxd3+ {[%emt 0:00:37]} 37. Kd2 {[%emt 0:00:26]} Nf4 {[%emt 0:00:49]} 38. Bf5 {[%emt 0:00:03]} Qh5 {[%emt 0:00:57]} 39. Rf2 {[%emt 0:01:20]} Bb4+ {[%emt 0:02:46]} 40. Kc2 {[%emt 0:00:14]} Be1 {[%emt 0:00:35]} 41. Bg4 {[%emt 0:00:57]} Qh6 {[%emt 0:00:54]} 0-1

[Event "10th Iberoamericano-ch 2024"]
[Site "Linares"]
[Date "2024.09.28"]
[Round "6.23"]
[White "Garcia Fernandez, Victor"]
[Black "Rodriguez Redondo, Adhara"]
[Result "1-0"]
[Annotator "ChessBase"]
[ECO "D10"]
[WhiteElo "2353"]
[BlackElo "2184"]
[PlyCount "79"]
[EventDate "2024.09.25"]
[EventType "swiss"]
[EventCountry "ESP"]
[SourceTitle "playchess.com"]
[Source "ChessBase"]
[SourceQuality "1"]
[TimeControl "5400+30"]

1. c4 {[%emt 0:00:37]} c6 {[%emt 0:00:14]} 2. d4 {[%emt 0:00:59]} d5 {[%emt 0:00:20]} 3. cxd5 {[%emt 0:01:46]} cxd5 {[%emt 0:00:30]} 4. Bf4 {[%emt 0:02:06]} Nc6 {[%emt 0:04:10]} 5. e3 {[%emt 0:00:39]} Nf6 {[%emt 0:20:17]} 6. Bd3 {[%emt 0:13:35]} e5 {[%emt 0:03:47]} 7. Bxe5 {[%emt 0:00:28]} Nxe5 {[%emt 0:08:16]} 8. dxe5 {[%emt 0:08:49]} Nd7 {[%emt 0:07:03]} 9. e6 {[%emt 0:00:07]} Bb4+ {[%emt 0:00:30]} 10. Nc3 {[%emt 0:00:30]} fxe6 {[%emt 0:01:58]} 11. Qh5+ {[%emt 0:00:06]} Kf8 {[%emt 0:01:42]} 12. Nf3 {[%emt 0:03:12]} Nf6 {[%emt 0:18:20]} 13. Qh4 {[%emt 0:01:31]} Bd6 {[%emt 0:09:22]} 14. O-O {[%emt 0:30:39]} Bd7 {[%emt 0:00:30]} 15. Bb5 {[%emt 0:00:30]} Bxb5 {[%emt 0:03:56]} 16. Nxb5 {[%emt 0:00:09]} Ne4 {[%emt 0:00:53]} 17. Qg4 {[%emt 0:08:14]} Qf6 {[%emt 0:05:58]} 18. Nfd4 {[%emt 0:02:37]} Re8 {[%emt 0:00:30]} 19. f3 h5 {[%emt 0:00:20]} 20. fxe4 {[%emt 0:01:33]} Bxh2+ {[%emt 0:00:55]} 21. Kxh2 {[%emt 0:00:38]} hxg4+ {[%emt 0:00:09]} 22. Kg3 {[%emt 0:00:06]} dxe4 {[%emt 0:03:48]} 23. Nc7 {[%emt 0:00:59]} Rc8 {[%emt 0:01:01]} 24. Ncxe6+ {[%emt 0:00:42]} Ke7 {[%emt 0:01:15]} 25. Rxf6 {[%emt 0:00:06]} gxf6 {[%emt 0:00:04]} 26. Nf4 {[%emt 0:00:43]} Kf7 {[%emt 0:01:32]} 27. Nd5 {[%emt 0:04:26]} Rc5 {[%emt 0:01:51]} 28. Nc3 {[%emt 0:00:13]} f5 {[%emt 0:01:42]} 29. Ncb5 {[%emt 0:00:59]} Rd5 {[%emt 0:01:34]} 30. Rc1 {[%emt 0:01:29]} Kg6 {[%emt 0:01:19]} 31. Rc7 {[%emt 0:01:14]} Rh7 {[%emt 0:01:14]} 32. Rc8 {[%emt 0:02:46]} a6 {[%emt 0:00:21]} 33. Nc3 {[%emt 0:00:17]} Rd6 {[%emt 0:01:07]} 34. Rg8+ {[%emt 0:03:49]} Kf7 {[%emt 0:00:30]} 35. Rg5 {[%emt 0:00:20]} Rxd4 {[%emt 0:00:29]} 36. exd4 {[%emt 0:00:20]} Kf6 {[%emt 0:00:27]} 37. Kf4 {[%emt 0:00:25]} Rh2 {[%emt 0:00:31]} 38. Rxf5+ {[%emt 0:00:06]} Ke6 {[%emt 0:00:07]} 39. Re5+ {[%emt 0:00:18]} Kd7 {[%emt 0:00:05]} 40. Kxe4 1-0

[Event "10th Iberoamericano-ch 2024"]
[Site "Linares"]
[Date "2024.09.28"]
[Round "6.24"]
[White "Marin Ferragut, Pau"]
[Black "Rodriguez Lopez, Rafael"]
[Result "1-0"]
[Annotator "ChessBase"]
[ECO "B41"]
[WhiteElo "2348"]
[BlackElo "2162"]
[PlyCount "131"]
[EventDate "2024.09.25"]
[EventType "swiss"]
[EventCountry "ESP"]
[SourceTitle "playchess.com"]
[Source "ChessBase"]
[SourceQuality "1"]
[TimeControl "5400+30"]

1. e4 {[%emt 0:00:16]} c5 {[%emt 0:00:07]} 2. Nf3 {[%emt 0:00:41]} e6 {[%emt 0:00:07]} 3. d4 {[%emt 0:02:50]} cxd4 4. Nxd4 {[%emt 0:00:05]} a6 {[%emt 0:00:12]} 5. c4 {[%emt 0:01:36]} Nf6 {[%emt 0:00:10]} 6. Nc3 {[%emt 0:02:01]} Qc7 {[%emt 0:00:06]} 7. a3 {[%emt 0:09:17]} b6 {[%emt 0:00:08]} 8. Bd3 {[%emt 0:03:17]} Bb7 {[%emt 0:00:22]} 9. O-O {[%emt 0:02:00]} Bc5 {[%emt 0:01:20]} 10. Nf3 {[%emt 0:08:21]} Nc6 {[%emt 0:04:26]} 11. Qe2 {[%emt 0:02:51]} Ng4 {[%emt 0:00:31]} 12. g3 {[%emt 0:04:34]} Nge5 {[%emt 0:07:18]} 13. Nxe5 {[%emt 0:02:35]} Nxe5 {[%emt 0:00:28]} 14. Bf4 {[%emt 0:01:03]} d6 {[%emt 0:04:58]} 15. Rad1 {[%emt 0:01:23]} Bd4 {[%emt 0:03:28]} 16. Nb1 {[%emt 0:05:55]} Nxd3 {[%emt 0:01:28]} 17. Rxd3 {[%emt 0:04:52]} e5 {[%emt 0:00:49]} 18. Nd2 {[%emt 0:04:39]} Bxb2 {[%emt 0:04:15]} 19. Be3 {[%emt 0:02:13]} Bd4 {[%emt 0:02:07]} 20. Bxd4 {[%emt 0:01:29]} exd4 {[%emt 0:00:06]} 21. Rxd4 {[%emt 0:00:38]} O-O {[%emt 0:00:09]} 22. Qd3 {[%emt 0:02:38]} Rae8 {[%emt 0:03:11]} 23. Rd1 {[%emt 0:07:11]} Re6 {[%emt 0:00:58]} 24. Nf3 {[%emt 0:02:58]} Qe7 {[%emt 0:07:16]} 25. Nd2 {[%emt 0:05:31]} Re8 {[%emt 0:10:27]} 26. Rb1 {[%emt 0:00:25]} f5 {[%emt 0:20:11]} 27. exf5 {[%emt 0:06:06]} Re1+ {[%emt 0:00:16]} 28. Rxe1 {[%emt 0:00:02]} Qxe1+ {[%emt 0:00:07]} 29. Nf1 {[%emt 0:00:23]} Be4 {[%emt 0:03:24]} 30. Qd2 {[%emt 0:02:18]} Bxf5 {[%emt 0:00:18]} 31. g4 {[%emt 0:01:07]} Qa1 {[%emt 0:03:59]} 32. Rf4 {[%emt 0:04:20]} Bg6 {[%emt 0:02:53]} 33. Qd5+ {[%emt 0:00:38]} Kh8 {[%emt 0:00:20]} 34. Qxd6 {[%emt 0:00:07]} Kg8 {[%emt 0:02:02]} 35. Qd5+ {[%emt 0:02:09]} Kh8 {[%emt 0:00:06]} 36. Qd6 {[%emt 0:00:01]} Kg8 {[%emt 0:00:08]} 37. Kg2 {[%emt 0:00:19]} Qb1 {[%emt 0:01:22]} 38. Ng3 {[%emt 0:00:37]} h6 {[%emt 0:00:32]} 39. h4 {[%emt 0:01:43]} Qd3 {[%emt 0:04:16]} 40. Qxb6 {[%emt 0:04:21]} Bf7 {[%emt 0:02:44]} 41. Qd4 {[%emt 0:01:19]} Qxd4 {[%emt 0:00:15]} 42. Rxd4 {[%emt 0:00:01]} Rc8 {[%emt 0:00:08]} 43. Nf5 {[%emt 0:01:52]} Rxc4 {[%emt 0:00:21]} 44. Rxc4 {[%emt 0:00:07]} Bxc4 {[%emt 0:00:04]} 45. Kf3 {[%emt 0:00:34]} Be6 {[%emt 0:00:53]} 46. Ke4 {[%emt 0:00:28]} Kf7 {[%emt 0:02:18]} 47. Ke5 {[%emt 0:00:13]} Bd7 {[%emt 0:00:13]} 48. f4 {[%emt 0:01:20]} Ba4 {[%emt 0:00:57]} 49. Nd6+ {[%emt 0:00:56]} Ke7 {[%emt 0:00:16]} 50. f5 {[%emt 0:00:50]} Bd1 {[%emt 0:00:27]} 51. g5 {[%emt 0:00:07]} hxg5 {[%emt 0:00:06]} 52. hxg5 {[%emt 0:00:01]} Bb3 {[%emt 0:00:36]} 53. Ne4 {[%emt 0:01:53]} a5 {[%emt 0:00:33]} 54. Ng3 {[%emt 0:00:40]} a4 {[%emt 0:00:13]} 55. Nh5 {[%emt 0:00:21]} Kf7 {[%emt 0:00:28]} 56. g6+ {[%emt 0:00:07]} Kf8 {[%emt 0:00:19]} 57. Kf4 {[%emt 0:00:26]} Bc2 {[%emt 0:00:13]} 58. Kg5 {[%emt 0:00:18]} Bb3 {[%emt 0:01:45]} 59. f6 {[%emt 0:01:38]} gxf6+ {[%emt 0:00:07]} 60. Nxf6 {[%emt 0:00:27]} Kg7 {[%emt 0:01:58]} 61. Nh5+ {[%emt 0:00:02]} Kf8 {[%emt 0:01:37]} 62. Kh6 {[%emt 0:00:31]} Ke7 {[%emt 0:00:45]} 63. Nf4 {[%emt 0:00:55]} Kf6 {[%emt 0:00:36]} 64. g7 {[%emt 0:00:38]} Bg8 {[%emt 0:00:11]} 65. Nd3 {[%emt 0:00:19]} Bb3 {[%emt 0:03:19]} 66. Nc5 {[%emt 0:00:13]} 1-0

[Event "10th Iberoamericano-ch 2024"]
[Site "Linares"]
[Date "2024.09.28"]
[Round "6.25"]
[White "Jimenez Fernandez, Rebeca"]
[Black "Vitier Vazquez, Cristian"]
[Result "1/2-1/2"]
[Annotator "ChessBase"]
[ECO "B40"]
[WhiteElo "2097"]
[BlackElo "2344"]
[PlyCount "81"]
[EventDate "2024.09.25"]
[EventType "swiss"]
[EventCountry "ESP"]
[SourceTitle "playchess.com"]
[Source "ChessBase"]
[SourceQuality "1"]
[TimeControl "5400+30"]

1. e4 {[%emt 0:00:01]} c5 {[%emt 0:02:58]} 2. Nf3 {[%emt 0:00:08]} e6 {[%emt 0:00:13]} 3. d4 {[%emt 0:00:04]} cxd4 4. Nxd4 {[%emt 0:00:03]} Nf6 {[%emt 0:00:44]} 5. Nc3 {[%emt 0:00:05]} Nc6 {[%emt 0:00:06]} 6. Ndb5 {[%emt 0:00:07]} Bb4 {[%emt 0:00:19]} 7. a3 {[%emt 0:00:18]} Bxc3+ {[%emt 0:00:10]} 8. Nxc3 {[%emt 0:00:03]} d5 {[%emt 0:00:07]} 9. exd5 {[%emt 0:00:13]} exd5 {[%emt 0:00:01]} 10. Bd3 {[%emt 0:00:33]} O-O {[%emt 0:00:26]} 11. O-O {[%emt 0:00:23]} Bg4 {[%emt 0:00:13]} 12. f3 {[%emt 0:00:38]} Bh5 {[%emt 0:00:09]} 13. Bg5 {[%emt 0:00:51]} Qb6+ {[%emt 0:00:31]} 14. Kh1 {[%emt 0:00:13]} Ne4 {[%emt 0:01:02]} 15. Nxe4 {[%emt 0:00:28]} dxe4 {[%emt 0:00:10]} 16. Bxe4 {[%emt 0:00:18]} Qxb2 {[%emt 0:00:07]} 17. Qb1 {[%emt 0:02:04]} Qb6 {[%emt 0:00:14]} 18. Qxb6 {[%emt 0:08:23]} axb6 {[%emt 0:00:02]} 19. Rfb1 {[%emt 0:01:43]} Bg6 {[%emt 0:00:25]} 20. Bxc6 {[%emt 0:14:26]} bxc6 {[%emt 0:00:07]} 21. Rxb6 {[%emt 0:00:22]} Bxc2 {[%emt 0:00:11]} 22. Rxc6 {[%emt 0:00:43]} Ba4 {[%emt 0:00:07]} 23. Rc7 {[%emt 0:02:37]} Rfe8 {[%emt 0:00:30]} 24. Be7 {[%emt 0:06:17]} h6 {[%emt 0:04:14]} 25. Kg1 {[%emt 0:02:57]} Kh7 {[%emt 0:01:55]} 26. Bb4 {[%emt 0:03:13]} Bb3 {[%emt 0:00:57]} 27. Kf2 {[%emt 0:01:37]} Kg6 {[%emt 0:10:24]} 28. Rb1 {[%emt 0:05:05]} Be6 {[%emt 0:01:01]} 29. Rd1 {[%emt 0:01:04]} Reb8 {[%emt 0:03:15]} 30. Rd2 {[%emt 0:01:48]} Re8 {[%emt 0:04:38]} 31. f4 {[%emt 0:12:08]} Bb3 {[%emt 0:05:21]} 32. Rd6+ {[%emt 0:03:48]} Kh7 {[%emt 0:00:35]} 33. Kf3 {[%emt 0:12:58]} Rab8 {[%emt 0:05:28]} 34. Rd3 {[%emt 0:04:57]} Ba2 {[%emt 0:00:42]} 35. Rd2 {[%emt 0:00:26]} Be6 {[%emt 0:00:57]} 36. f5 {[%emt 0:02:25]} Bb3 {[%emt 0:09:02]} 37. Rd3 {[%emt 0:01:00]} Ba2 {[%emt 0:00:09]} 38. Rd2 {[%emt 0:00:19]} Bb3 {[%emt 0:00:27]} 39. Rd3 {[%emt 0:04:18]} Ba2 {[%emt 0:00:48]} 40. Rd2 {[%emt 0:00:36]} Bb3 {[%emt 0:00:12]} 41. Rd3 {[%emt 0:00:36]} 1/2-1/2

[Event "10th Iberoamericano-ch 2024"]
[Site "Linares"]
[Date "2024.09.28"]
[Round "6.26"]
[White "Ruiz Buendia, Miguel"]
[Black "Fernandez Sanchez, Fernando Miguel"]
[Result "1-0"]
[Annotator "ChessBase"]
[ECO "C78"]
[WhiteElo "2269"]
[BlackElo "2399"]
[PlyCount "71"]
[EventDate "2024.09.25"]
[EventType "swiss"]
[EventCountry "ESP"]
[SourceTitle "playchess.com"]
[Source "ChessBase"]
[SourceQuality "1"]
[TimeControl "5400+30"]

1. e4 {[%emt 0:00:39]} e5 {[%emt 0:06:29]} 2. Nf3 {[%emt 0:00:10]} Nc6 {[%emt 0:00:06]} 3. Bb5 {[%emt 0:00:10]} a6 {[%emt 0:00:04]} 4. Ba4 {[%emt 0:00:05]} Nf6 {[%emt 0:00:05]} 5. O-O {[%emt 0:00:20]} b5 {[%emt 0:00:13]} 6. Bb3 {[%emt 0:00:10]} Bc5 {[%emt 0:00:05]} 7. a4 {[%emt 0:00:56]} Rb8 {[%emt 0:00:13]} 8. axb5 {[%emt 0:00:25]} axb5 {[%emt 0:00:06]} 9. Nxe5 {[%emt 0:00:11]} Nxe5 {[%emt 0:00:19]} 10. d4 {[%emt 0:00:07]} Bxd4 {[%emt 0:00:25]} 11. Qxd4 {[%emt 0:00:09]} d6 {[%emt 0:01:01]} 12. f4 {[%emt 0:00:16]} Nc6 {[%emt 0:00:42]} 13. Qc3 {[%emt 0:00:20]} Ne7 {[%emt 0:00:47]} 14. Ra7 {[%emt 0:00:12]} Rb7 {[%emt 0:15:04]} 15. Ra8 {[%emt 0:00:11]} O-O {[%emt 0:01:08]} 16. Qf3 {[%emt 0:00:08]} Nd7 {[%emt 0:04:57]} 17. f5 {[%emt 0:10:05]} Kh8 {[%emt 0:01:49]} 18. f6 {[%emt 0:13:19]} Nxf6 {[%emt 0:01:42]} 19. Bg5 {[%emt 0:02:03]} Neg8 {[%emt 0:02:13]} 20. c4 {[%emt 0:22:42]} bxc4 {[%emt 0:08:00]} 21. Bxc4 {[%emt 0:01:22]} Rxb2 {[%emt 0:03:58]} 22. Qa3 {[%emt 0:21:39]} Rb6 {[%emt 0:04:59]} 23. Nc3 {[%emt 0:01:11]} Qe8 {[%emt 0:03:36]} 24. Be3 {[%emt 0:13:11]} Rc6 {[%emt 0:16:07]} 25. Qa4 {[%emt 0:00:30]} Nxe4 {[%emt 0:00:28]} 26. Rxc8 {[%emt 0:00:35]} Qxc8 {[%emt 0:04:03]} 27. Nxe4 {[%emt 0:00:55]} Rxc4 {[%emt 0:00:26]} 28. Qxc4 {[%emt 0:00:12]} f6 {[%emt 0:01:17]} 29. Rc1 {[%emt 0:01:13]} Qa8 {[%emt 0:02:20]} 30. Ng3 {[%emt 0:01:08]} Qa3 {[%emt 0:07:05]} 31. Rc3 {[%emt 0:00:21]} Qa1+ {[%emt 0:00:03]} 32. Rc1 {[%emt 0:00:05]} Qa3 {[%emt 0:00:04]} 33. Bf2 {[%emt 0:00:45]} Rf7 {[%emt 0:00:58]} 34. Rc3 {[%emt 0:00:45]} Qa1+ {[%emt 0:00:13]} 35. Rc1 {[%emt 0:00:06]} Qa3 {[%emt 0:00:04]} 36. Rb1 {[%emt 0:00:47]} 1-0

[Event "10th Iberoamericano-ch 2024"]
[Site "Linares"]
[Date "2024.09.28"]
[Round "6.27"]
[White "Garcia, Jhoel"]
[Black "Suarez Gomez, Paula"]
[Result "1/2-1/2"]
[Annotator "ChessBase"]
[ECO "C07"]
[WhiteElo "2360"]
[BlackElo "2111"]
[PlyCount "49"]
[EventDate "2024.09.25"]
[EventType "swiss"]
[EventCountry "ESP"]
[SourceTitle "playchess.com"]
[Source "ChessBase"]
[SourceQuality "1"]
[TimeControl "5400+30"]

1. e4 {[%emt 0:03:23]} e6 {[%emt 0:00:10]} 2. d4 {[%emt 0:03:30]} d5 {[%emt 0:00:06]} 3. Nd2 {[%emt 0:00:21]} c5 {[%emt 0:00:40]} 4. exd5 {[%emt 0:00:36]} Qxd5 {[%emt 0:00:24]} 5. Ngf3 {[%emt 0:00:12]} cxd4 {[%emt 0:00:13]} 6. Bc4 {[%emt 0:00:16]} Qd7 {[%emt 0:00:07]} 7. O-O {[%emt 0:04:12]} Nc6 {[%emt 0:01:04]} 8. Nb3 {[%emt 0:00:24]} a6 {[%emt 0:02:22]} 9. a4 {[%emt 0:06:00]} Nf6 {[%emt 0:02:46]} 10. Qe2 {[%emt 0:07:23]} Be7 {[%emt 0:08:20]} 11. Rd1 {[%emt 0:03:05]} Qc7 {[%emt 0:02:03]} 12. Nbxd4 {[%emt 0:06:48]} O-O {[%emt 0:06:26]} 13. Nxc6 {[%emt 0:01:41]} Qxc6 {[%emt 0:00:49]} 14. Bg5 {[%emt 0:06:01]} h6 {[%emt 0:09:23]} 15. Ne5 {[%emt 0:03:04]} Qc5 {[%emt 0:01:33]} 16. Bf4 {[%emt 0:04:04]} Re8 {[%emt 0:07:44]} 17. Rd3 {[%emt 0:10:04]} Bd7 {[%emt 0:16:00]} 18. Rxd7 {[%emt 0:20:18]} Nxd7 {[%emt 0:00:37]} 19. Nxf7 {[%emt 0:11:51]} Nf8 {[%emt 0:08:19]} 20. Bxe6 {[%emt 0:02:38]} Nxe6 {[%emt 0:02:31]} 21. Nxh6+ {[%emt 0:02:46]} Kh8 {[%emt 0:12:27]} 22. Nf7+ {[%emt 0:00:21]} Kg8 {[%emt 0:01:26]} 23. Nh6+ {[%emt 0:00:34]} Kh8 {[%emt 0:00:36]} 24. Nf7+ {[%emt 0:01:37]} Kg8 {[%emt 0:02:23]} 25. Nh6+ 1/2-1/2